Cogmind - Beta 13 @@@ ROGUE MODE // 2024.04.07 @ 17:53:33 Player: desiring-machine Result: Destroyed by G-47 Trooper with Particle Gun Performance ------------- Evolutions (2) 1000 Regions Visited (4) 800 Robots Destroyed (30) 150 Value Destroyed (859) 859 Prototype IDs (0) 0 Alien Tech Used (0) 0 Bonus (0) 0 TOTAL SCORE: 2809 Bonus ------- None Cogmind --------- Core Integrity 0/550 Matter 177/300 Energy 16/100 System Corruption 0% Temperature Cool (9) Movement Walking (120) Location -8/Materials Parts ------- > --- POWER (1) -------- (None) > --- PROPULSION (4) --- Carbon-fiber Leg > --- UTILITY (4) ------ (None) > --- WEAPON (2) ------- Arc Projector > --- INVENTORY (5) ---- High-capacity Battery (250) Improved Sensor Array Hacking Suite Arc Projector Peak State ------------ > --- POWER ------------ Improved Deuterium Engine > --- PROPULSION ------- Improved Carbon-fiber Leg Improved Carbon-fiber Leg Improved Carbon-fiber Leg Improved Carbon-fiber Leg > --- UTILITY ---------- Small Storage Unit Matter Filter Medium Armor Plating Hardlight Generator > --- WEAPON ----------- Beam Rifle Improved Light Cannon > --- INVENTORY -------- Light Nuclear Core Improved Heat Sink High-capacity Battery Improved Sensor Array Hacking Suite Medium Laser Improved Light Cannon [Rating: 35] Favorites ----------- Power Light Ion Engine Engine Light Ion Engine Power Core Light Nuclear Core Propulsion Aluminum Leg Leg Aluminum Leg Wheel Wheel Utility Small Storage Unit Device Matter Filter Storage Small Storage Unit Protection Improved Weapon Shielding Weapon Improved Light Cannon Energy Gun Beam Rifle Ballistic Gun Assault Rifle Ballistic Cannon Improved Light Cannon Special Melee Weapon Improved Datajack Build | -11 -10 -10 -9 -8 ------- Run | Yrd Mat Min Mat Mat Slots Evolved 4 | . . . 2 2 Power . | . . . . . Propulsion 2 | . . . 2 . Utility 2 | . . . . 2 Weapon . | . . . . . Parts Attached 38 | 6 2 1 10 19 Power 5 | 1 . . 1 3 Engine 3 | 1 . . 1 1 Core 2 | . . . . 2 Reactor . | . . . . . Propulsion 13 | 2 . . 6 5 Treads . | . . . . . Leg 10 | . . . 5 5 Wheel 3 | 2 . . 1 . Hover . | . . . . . Flight . | . . . . . Utility 8 | 1 1 1 . 5 Device 5 | . 1 . . 4 Storage 1 | 1 . . . . Processor . | . . . . . Hackware . | . . . . . Protection 2 | . . 1 . 1 Artifact . | . . . . . Weapon 12 | 2 1 . 3 6 Energy Gun 6 | 1 . . 1 4 Energy Cannon . | . . . . . Ballistic Gun 1 | 1 . . . . Ballistic Cannon 4 | . 1 . 2 1 Launcher . | . . . . . Special Weapon . | . . . . . Impact Weapon . | . . . . . Slashing Weapon . | . . . . . Piercing Weapon . | . . . . . Special Melee Weapon 1 | . . . . 1 Unidentified Prototypes . | . . . . . Parts Lost 20 | . . . 3 17 Power 3 | . . . 1 2 Propulsion 5 | . . . 1 4 Utility 6 | . . . 1 5 Weapon 6 | . . . . 6 Highest Loss Streak 13 | . . . 1 13 To Critical Strikes 1 | . . . . 1 Average Slot Usage (%) 85 | . 88 88 89 79 Engine 8 | . 14 14 10 2 Core 1 | . . . . 4 Leg 24 | . . . 32 29 Wheel 8 | . 28 28 5 . Device 4 | . 2 2 . 12 Storage 10 | . 14 14 11 7 Protection 5 | . . . 7 6 Energy Gun 10 | . 14 14 10 7 Ballistic Cannon 10 | . 8 14 11 7 Naked Turns . | . . . . . Heaviest Build 37 | 12 13 15 21 37 Greatest Support 78 | 26 32 32 45 78 Greatest Overweight (x) 6 | 1 . . 5 6 Average Overweight (x) . | . . . . . Largest Inventory Capacity 8 | 8 8 8 8 8 Average Capacity 7 | 7 8 8 8 7 Most Carried 8 | 5 7 8 8 8 Average Carried 6 | 2 4 7 7 6 Final Capacity 8 | 8 8 8 8 5 Final Carried 8 | 4 7 7 8 4 Class Distribution -------------------- 76% | Mutant 23% | Scavenger-Mutant Dominant Class ---------------- Mutant | -10/Materials Mutant | -10/Mines Scavenger-Mutant | -9/Materials Mutant | -8/Materials Resources | -11 -10 -10 -9 -8 ----------- Run | Yrd Mat Min Mat Mat Matter Collected 780 | 162 15 24 441 138 Remotely . | . . . . . Salvage Created 860 | . 8 . 428 424 Parts 52 | . 1 . 30 21 Haulers Intercepted 1 | . . . . 1 Recyclers Shooed . | . . . . . Parts Field Recycled . | . . . . . Retrieved Matter . | . . . . . Parts Self-Destructed . | . . . . . Prevented . | . . . . . Kills | -11 -10 -10 -9 -8 ------- Run | Yrd Mat Min Mat Mat Combat Hostiles Destroyed 24 | . . . 16 8 Guns 9 | . . . 4 5 Cannons 15 | . . . 12 3 Classes Destroyed 10 | . 1 . 5 4 Worker 1 | . . . 1 . Builder 1 | . . . . 1 Hauler 1 | . . . . 1 Operator 1 | . 1 . . . Watcher 2 | . . . 2 . Swarmer 7 | . . . 7 . Grunt 13 | . . . 7 6 Brawler 1 | . . . . 1 Sentry 2 | . . . 2 . Hunter 1 | . . . . 1 Best Kill Streak 6 | . 1 . 4 6 Combat Bots Only 4 | . . . 4 3 Max Kills in Single Turn 2 | . 1 . 2 1 Gunslinging . | . . . . . Exploded . | . . . . . Melee . | . . . . . Uniques/NPCs Destroyed . | . . . . . Combat | -11 -10 -10 -9 -8 -------- Run | Yrd Mat Min Mat Mat Hostile Shots Fired 279 | . . . 93 186 Missed 69 | . . . 25 44 Damage Taken 2957 | . . 90 802 2065 Core 729 | . . 9 160 560 Absorbed by Shields 180 | . . . . 180 Redirected to Shielding 88 | . . . 88 . Core Remaining (%) 85 | 100 . 96 60 . Volleys Fired 106 | . 3 . 47 56 Largest 2 | . 2 . 2 2 Hottest 105 | . 85 . 95 105 Shots Fired 168 | . 6 . 86 76 Gun 90 | . 3 . 39 48 Cannon 78 | . 3 . 47 28 Launcher . | . . . . . Special . | . . . . . Kinetic 78 | . 3 . 47 28 Thermal 81 | . 3 . 39 39 Explosive . | . . . . . Electromagnetic 9 | . . . . 9 Robot Hit Streak 19 | . 3 . 19 13 Robot Miss Streak 5 | . 3 . 3 5 Penetration Max . | . . . . . Secondary Targets . | . . . . . Shots Hit Robots 110 | . 3 . 57 50 Core Hits 47 | . 1 . 21 25 Critical Kills . | . . . . . Critical Parts Destroyed . | . . . . . Critical Strikes 6 | . . . 4 2 Burn 3 | . . . 2 1 Blast 3 | . . . 2 1 Melee Attacks 2 | . . . . 2 Impact . | . . . . . Slashing . | . . . . . Piercing . | . . . . . Sneak Attacks 1 | . . . . 1 Combat Hostiles . | . . . . . Follow-up Attacks . | . . . . . Damage Inflicted 2021 | . 46 . 1115 860 Guns 847 | . 12 . 374 461 Cannons 1162 | . 34 . 736 392 Explosions . | . . . . . Melee . | . . . . . Ramming 12 | . . . 5 7 Kinetic 1162 | . 34 . 736 392 Thermal 763 | . 12 . 374 377 Explosive . | . . . . . Electromagnetic 84 | . . . . 84 Impact . | . . . . . Slashing . | . . . . . Piercing . | . . . . . Highest Corruption 1 | . . 1 . . Average Corruption 1 | . . 1 . . Corruption Purged . | . . . . . Corruption Blocked . | . . . . . Effects 3 | . . 3 . . Message Errors 2 | . . 2 . . Matter Fused 1 | . . 1 . . Overload Shots . | . . . . . Overflow Damage 11 | . . . 11 . Projectiles 11 | . . . 11 . Explosions . | . . . . . Melee . | . . . . . Knockbacks 14 | . . . 10 4 Impact . | . . . . . Kinetic 14 | . . . 10 4 Secondary . | . . . . . Self-Inflicted Damage . | . . . . . Shots . | . . . . . Rammed . | . . . . . Targets Rammed 2 | . . . 1 1 Kicked 2 | . . . 1 1 Crushed . | . . . . . Highest Temperature 520 | . 72 . 453 520 Average Temperature 140 | . 38 . 129 160 Received Heat Transfer 1310 | . . . 315 995 Effects 15 | . . . 5 10 Shutdowns 3 | . . . 1 2 Energy Bleed 2 | . . . 1 1 Interference 5 | . . . 2 3 Matter Decay 4 | . . . 1 3 Damage (minor) 1 | . . . . 1 Siege Activations . | . . . . . Robots Corrupted . | . . . . . Combat Hostiles . | . . . . . Parts Fried . | . . . . . Impact Corruptions . | . . . . . Robots Melted . | . . . . . Combat Hostiles . | . . . . . Parts Melted 1 | . . . 1 . Heat Transferred 2257 | . 37 . 1110 1110 Parts Sabotaged . | . . . . . Parts Stolen . | . . . . . Parts Stripped . | . . . . . Power Chain Reactions . | . . . . . Alert | -11 -10 -10 -9 -8 ------- Run | Yrd Mat Min Mat Mat Peak Influence 347 | . 5 1 347 115 Initial 83 | . . 1 . 83 Average 91 | . 1 1 151 73 Maximum Alert Level 1 | . . . 1 . Low Security (%) 90 | 100 100 100 79 100 Level 1 9 | . . . 20 . Level 2 . | . . . . . Level 3 . | . . . . . Level 4 . | . . . . . Level 5 . | . . . . . High Security . | . . . . . Max Security . | . . . . . Squads Dispatched 5 | . 2 . 3 . Investigation 1 | . 1 . . . Extermination . | . . . . . Reinforcement 4 | . 1 . 3 . Assault . | . . . . . Garrison . | . . . . . Intercept . | . . . . . Searches Triggered . | . . . . . Construction Impeded . | . . . . . Haulers Reinforced . | . . . . . Active Scanning Responses . | . . . . . Cargo Convoy Interrupts . | . . . . . Stealth | -11 -10 -10 -9 -8 --------- Run | Yrd Mat Min Mat Mat Distress Signals . | . . . . . Communications Jammed . | . . . . . Distress Signals . | . . . . . Times Spotted 49 | . 3 . 34 12 Peak Tracking Total 6 | . 2 . 5 6 Tactical Retreats 2 | . . . 2 . Traps | -11 -10 -10 -9 -8 ------- Run | Yrd Mat Min Mat Mat Traps Triggered 2 | . 1 1 . . Indirectly . | . . . . . Trap Hack Attempts . | . . . . . Triggered . | . . . . . Disarmed . | . . . . . Reprogrammed . | . . . . . Reused . | . . . . . Traps Extracted . | . . . . . Installed . | . . . . . Triggered . | . . . . . Machines | -11 -10 -10 -9 -8 ---------- Run | Yrd Mat Min Mat Mat Machines Disabled . | . . . . . Max in Single Turn . | . . . . . Machines Repaired . | . . . . . Machines Dismantled . | . . . . . Machines Sabotaged . | . . . . . Overloaded Fab Kills . | . . . . . Hacking | -11 -10 -10 -9 -8 --------- Run | Yrd Mat Min Mat Mat Machines Accessed 1 | . . 1 . . Terminals . | . . . . . Fabricators . | . . . . . Repair Stations . | . . . . . Recycling Units . | . . . . . Scanalyzers . | . . . . . Garrison Access . | . . . . . Total Hacks 1 | . . 1 . . Successful 1 | . . 1 . . Failed . | . . . . . Catastrophic . | . . . . . Database Lockouts . | . . . . . Manual . | . . . . . Terminals . | . . . . . Fabricators . | . . . . . Repair Stations . | . . . . . Recycling Units . | . . . . . Scanalyzers . | . . . . . Garrison Access . | . . . . . Terminal Hacks 1 | . . 1 . . Open Door 1 | . . 1 . . Fabricator Hacks . | . . . . . Repair Station Hacks . | . . . . . Recycling Unit Hacks . | . . . . . Scanalyzer . | . . . . . Garrison Access Hacks . | . . . . . Unauthorized Hacks . | . . . . . Terminals . | . . . . . Fabricators . | . . . . . Repair Stations . | . . . . . Recycling Units . | . . . . . Scanalyzers . | . . . . . Garrison Access . | . . . . . Data Cores Recovered . | . . . . . Used . | . . . . . Hacking Detections . | . . . . . Full Trace Events . | . . . . . Feedback Events . | . . . . . Feedback Blocked . | . . . . . Robot Schematics Acquired . | . . . . . Robots Built . | . . . . . Authchips . | . . . . . Time . | . . . . . Total Robot Build Rating . | . . . . . Part Schematics Acquired . | . . . . . Parts Built . | . . . . . Authchips . | . . . . . Time . | . . . . . Total Part Build Rating . | . . . . . Parts Repaired . | . . . . . Time . | . . . . . Parts Recycled . | . . . . . Recycled Matter . | . . . . . Retrieved Matter . | . . . . . Retrieved Components . | . . . . . Parts Scanalyzed . | . . . . . Part Schematics Acquired . | . . . . . Parts Damaged . | . . . . . Bothacking | -11 -10 -10 -9 -8 ------------ Run | Yrd Mat Min Mat Mat Used RIF Installer . | . . . . . Robots Hacked 2 | . . . . 2 Non-combat 1 | . . . . 1 Combat 1 | . . . . 1 Robot Hacks Applied 2 | . . . . 2 parse_system 1 | . . . . 1 no_distress 1 | . . . . 1 Relay Couplers Released . | . . . . . Fabnet Peak Effective % . | . . . . . Robots Rewired . | . . . . . Allies Hacked . | . . . . . Hacks Repelled . | . . . . . Allies | -11 -10 -10 -9 -8 -------- Run | Yrd Mat Min Mat Mat Total Allies . | . . . . . Largest Group . | . . . . . Highest-Rated Group . | . . . . . Highest-Rated Ally . | . . . . . Total Orders . | . . . . . Ally Attacks . | . . . . . Total Damage . | . . . . . Kills . | . . . . . Allies Corrupted . | . . . . . Allies Melted . | . . . . . Intel | -11 -10 -10 -9 -8 ------- Run | Yrd Mat Min Mat Mat Robot Analysis Total . | . . . . . Derelict Logs Recovered 1 | . . 1 . . Drone Launches . | . . . . . Drone Recoveries . | . . . . . Exploration | -11 -10 -10 -9 -8 ------------- Run | Yrd Mat Min Mat Mat Turns Passed 1854 | 55 146 218 815 620 Spaces Moved 1240 | 48 138 236 513 305 Core 24 | 17 . . 3 4 Treads . | . . . . . Legs 671 | . . . 370 301 Wheels 545 | 31 138 236 140 . Hover . | . . . . . Flight . | . . . . . Fastest Speed 50 | 50 90 90 86 50 Average Speed 107 | 76 90 90 114 120 Slowest Speed 350 | 95 90 90 300 350 Overloaded Moves . | . . . . . Propulsion Burnouts . | . . . . . Robots Hopped . | . . . . . Cave-ins Triggered . | . . . . . Exploration Rate (%) 30 | 3 27 59 39 22 Regions Visited 4 Branch Regions 1 Pre-discovered Areas . | . . . . . Known Exits Taken 1 | . . . 1 . Unknown Exits Taken 3 | 1 1 1 . . Scrap Searched 1 | . . 1 . . Spaces Dug . | . . . . . Terrain Destroyed 4 | . . . 3 1 Melee . | . . . . . Projectile 4 | . . . 3 1 AOE . | . . . . . Terrain Rammed . | . . . . . Walls Destroyed . | . . . . . Machines Disabled . | . . . . . Actions | -11 -10 -10 -9 -8 --------- Run | Yrd Mat Min Mat Mat Total 1604 | 66 153 241 659 485 Wait 152 | 3 7 3 60 79 Move 1236 | 47 137 235 512 305 Hop . | . . . . . Pick Up 47 | 10 4 1 17 15 Fast Attach . | . . . . . Attach 31 | 6 1 1 7 16 Detach . | . . . . . Swap 7 | . 1 . 3 3 Drop 21 | . . 1 12 8 Fire 106 | . 3 . 47 56 Melee 2 | . . . . 2 Ram . | . . . . . Kick 2 | . . . 1 1 Crush . | . . . . . Escape Stasis . | . . . . . Rewire . | . . . . . Trap . | . . . . . Miscellaneous . | . . . . . Route ------- -11/Scrapyard -10/Materials -10/Mines -9/Materials -8/Materials History --------- Turn | Location | Event 13 | -11/Scrapyard | Discovered new exit (range 16) 56 | -11/Scrapyard | Entered Materials 171 | -10/Materials | Discovered new exit (range 13) 202 | -10/Materials | Entered Mines 219 | -10/Mines | Learned 2 Materials zone layouts 228 | -10/Mines | Met a Derelict bent on vengeance 241 | -10/Mines | Met a Derelict who couldn't figure out how to use a Trap Extractor 318 | -10/Mines | Build established: Mutant 383 | -10/Mines | Discovered new exit (range 11) 385 | -10/Mines | Found a hidden stash of uninstalled traps 420 | -10/Mines | Entered Materials 420 | -9/Materials | Evolved 2 slots: Propulsion x2 421 | -9/Materials | Identified exit to Materials 1094 | -9/Materials | Build established: Scavenger-Mutant 1235 | -9/Materials | Entered another Materials area 1235 | -8/Materials | Evolved 2 slots: Utility x2 1535 | -8/Materials | Build established: Mutant 1747 | -8/Materials | Core integrity fell below 50% 1772 | -8/Materials | Lost 13 parts (1p4n5u3w) 1778 | -8/Materials | Core integrity fell below 20% 1855 | -8/Materials | Destroyed by G-47 Trooper with Particle Gun Last Messages --------------- >>no_distress Distress signal routine blocked. 01835_ K-01 Serf collects debris. 01835_ Acquired 50 matter. 01837_ K-01 Serf collects debris. 01841_ R-06 Scavenger collects Lgt. Angular Momentum Engine. 01841_ K-01 Serf collects debris. 01843_ Imp. Datajack destroyed. 01844_ R-06 Scavenger collects Adv. Heat Sink. 01844_ Acquired Arc Projector. 01845_ K-01 Serf destroyed. 01846_ K-01 Serf collects debris. 01847_ R-06 Scavenger collects Wheel. 01849_ K-01 Serf collects debris. 01849_ R-06 Scavenger collects Lgt. Treads. 01850_ R-06 Scavenger collects Carbon-fiber Leg. 01852_ K-01 Serf collects debris. 01852_ R-06 Scavenger collects Particle Gun. 01855_ Acquired Arc Projector. Map ----- +----------------------------------------------------+ | ?????????????????????????????????????????????????? | | ?????????????????????????????????????????????????? | | ?????????????????????????????????????????????????? | | ?????????????????????????????????????????????????? | | ?????????????????????????????????????????????????? | | ?????????????????????????????????????????????????? | | ?????????????????????????????????????????????????? | | ?????????????????????????????????????????????????? | | ?????????????????????????????????????????????????? | | ?????????????????????????????????????????????????? | | ?????????????????????????????????????????????????? | | ?????????????????????????????????????????????????? | | ?????????????????????????????????????????????????? | | ?????????????????????????????????????????????????? | | ?????????????????????????????????????? #?????????? | | ????????????????????????????????????? ??????????? | | ????????????????????????????######## ??????????? | | ????????????????????????????# ???????????? | | ????????????????????????????# %% ?????????????? | | ????????????????????????????# % ???????????????? | | ????????????????????????????# #????????????????? | | ????????????????????????#####[/ ###########??????? | | ????????????????????????#===%!g # #??????? | | ????????????????????????#==k%g !+ #??????? | | ????????????????????????#[ % # #??????? | | ????????????????????????#@ r !# #??????? | | ????????????????????????#** %% #!/* #??????? | | ????????????????????????#* %%%%#! * #??????? | | ????????????????????????#####r% #/** #??????? | | ????????????????????????????# % # #??????? | | ????????????????????????????# ###########??????? | | ????????????????????????????# ###########??????? | | ????????????????????????????# # """ #??????? | | ??????????????????##????????# # "R" #??????? | | ?????????????????? ????????# # " " #??????? | | ?????????????????? ????????# # #??????? | | ?????????????????? ????????# # """ #??????? | | ?????????????????? ????????# / """" #??????? | | ?????????????????? #???????# # """" #??????? | | ??????????????????# #???????# # ##?????? | | ?????????????????# ???????# #########+##?????? | | ?????????????????# ######## #? """ ## ##?????? | | ?????????????????? # = # # """ ## #??????? | | ??????????????????# ## # # """ ## #??????? | | ??????????????????# ## "" + + ## #??????? | | ??????????????????# + Y" # # ## #??????? | | ??????????????????# ## "" # # ## #??????? | | ??????????????????# ##! # #?####### #??????? | | ??????????????????# ######### #???????# #??????? | | ??????????????????# #?# ???## "%#???????# #??????? | +----------------------------------------------------+ Best States ------------- Heat Dissipation 45 Energy Generation 16 Energy Capacity 290 Matter Stores 300 Matter Capacity 300 Sight Range 16 Terrain Scan Density 10 Additional Mass Support 6 Armor Coverage 225 Weapon Shielding 66 Evasion (%) 55 Matter Filtering 30 Item Schematics ----------------- None Robot Schematics ------------------ None Fabricated ------------ Nothing Alien Tech Used ----------------- None Achievements -------------- None Challenges ------------ None Game ------ Seed CarbideBehemothClaws Manual? 0 Play Time 00:25:25 Cumulative 5.2 hours Start 2024.04.07 @ 17:12:55 End 2024.04.07 @ 17:53:33 Sessions 1 Manual Loads 0 Difficulty Rogue Special Mode None Game No. 9 Rogue 9 Adventurer 0 Explorer 0 Win Type - Total 0 Types 0/0/0/0/0/0/0/0/0 Lore% 8 Gallery% 11 Achievement% 11 Wizard Run 0 Options --------- Layout 1 ASCII 0 Keyboard 0 Movement Numpad Keybinds 0 Fullscreen 1 Font 24/Smallcaps Map View 50x35 Zoom Use 0% Tactical HUD 1 Map Filters NONE Filters NONE Steam 0 RUN: 54ab0e1d-41f9-4f75-b42a-04d5ff1f4f44